bitfinex/quotes_ETHUSD_20260226
["timestamp","ask_amount","ask_price","bid_price","bid_amount"]
[1772117782950,1.73158646,2055.3,2053.9,0.08192]
[1772117783566,4.86475968,2055.7,2053.9,0.08192]
[1772117783567,2.94774712,2055.7,2054.0,0.18685624]
[1772117783875,2.94753976,2056.0,2054.6,0.26877624]
[1772117784173,1.73158646,2056.0,2054.6,1.31577624]
[1772117784350,1.73158646,2056.0,2054.6,1.047]
[1772117784673,1.73158646,2056.0,2054.7,0.26877624]
[1772117784874,1.21576219,2056.4,2054.7,2.36852653]
[1772117785080,1.73158646,2056.3,2054.7,0.26877624]
[1772117785257,1.73158646,2056.3,2054.9,0.18685624]
[1772117785875,1.73158646,2056.1,2054.9,0.08192]
[1772117786261,1.73158646,2056.1,2054.8,1.21666342]
[1772117786463,1.73158646,2056.1,2054.6,2.34564529]
[1772117786657,1.73158646,2056.1,2054.4,0.08192]
[1772117787059,1.73158646,2056.1,2054.3,1.21695954]
[1772117787261,1.73158646,2055.7,2054.0,1.21707803]
[1772117787466,1.73158646,2055.5,2054.0,1.21707803]
[1772117787761,1.399,2055.6,2054.0,1.21707803]
[1772117787762,6.5968195,2055.6,2054.0,0.08192]
[1772117787963,1.73158646,2055.4,2054.0,0.08192]
[1772117788455,1.73158646,2055.4,2053.9,4.86858245]
[1772117788776,1.73158646,2055.4,2054.0,0.26877624]
[1772117789479,1.73158646,2055.4,2054.0,0.08192]
[1772117789670,1.73158646,2055.4,2053.9,4.86858245]
[1772117789982,1.73158646,2055.2,2055.0,0.0011]
[1772117790182,1.73158646,2055.2,2054.1,1.21707803]
[1772117790481,1.73158646,2055.6,2054.8,0.0011]
[1772117790976,2.94760627,2055.9,2054.8,0.0011]
[1772117791385,1.73158646,2055.9,2054.8,0.0011]
[1772117791596,2.94760627,2055.9,2054.8,0.0011]
[1772117792386,1.73158646,2055.8,2054.8,0.0011]
[1772117793963,1.73158646,2055.6,2054.8,0.0011]
[1772117794459,6.34613075,2055.7,2054.5,0.0011]
[1772117794460,1.73158646,2055.3,2054.5,0.0011]
[1772117794659,5.13,2055.4,2054.5,0.0011]
[1772117794660,3.12858646,2055.2,2054.5,0.0011]
[1772117794884,1.73158646,2055.1,2054.5,0.0011]
[1772117795870,1.73103646,2055.0,2053.6,1.21737436]
[1772117796081,5.13,2055.7,2053.6,1.21737436]
[1772117796082,2.94710806,2055.8,2054.3,0.08192]
[1772117796368,1.73103646,2055.7,2054.4,0.18685624]
[1772117796572,1.73103646,2055.8,2054.4,0.18685624]
[1772117797266,1.73103646,2055.8,2054.3,1.12692]
[1772117797267,2.94690279,2056.2,2054.7,0.18685624]
[1772117797476,1.73103646,2056.1,2054.7,0.18685624]
[1772117797685,1.73103646,2056.1,2054.5,0.18685624]
[1772117797869,1.73103646,2056.1,2054.7,0.18685624]
[1772117797870,1.2159533,2056.0,2054.7,0.18685624]
[1772117798397,6.59484968,2056.1,2054.7,0.18685624]
[1772117798398,2.94697281,2056.1,2054.7,0.18685624]
[1772117798702,1.73103646,2056.1,2054.7,0.18685624]
[1772117799096,1.73103646,2056.1,2054.3,4.86736432]
[1772117799097,1.73103646,2055.8,2053.6,4.6055832]
[1772117799272,1.73103646,2055.8,2053.6,1.045]
[1772117799273,1.73103646,2055.7,2053.6,1.045]
[1772117799901,1.73103646,2055.7,2053.7,0.08192]
[1772117800101,1.73103646,2055.7,2053.9,0.08192]
[1772117800102,1.73103646,2055.5,2053.9,0.08192]
[1772117800300,1.73103646,2055.5,2054.0,0.18685624]
[1772117800600,1.73103646,2055.5,2053.9,0.08192]
[1772117800899,1.73103646,2055.5,2054.0,1.045]
[1772117801698,4.86475968,2055.7,2054.2,0.18685624]
[1772117801699,2.94721117,2055.7,2054.2,0.18685624]
[1772117802071,1.73103646,2055.7,2054.6,0.08192]
[1772117802272,1.73103646,2055.7,2054.7,0.18685624]
[1772117802470,2.88717769,2055.7,2054.6,0.08192]
[1772117802897,2.88717769,2055.7,2054.5,1.21684108]
[1772117803085,2.88717769,2055.7,2054.6,1.043]
[1772117803285,2.88717153,2055.7,2054.6,1.043]
[1772117803493,1.60103646,2055.6,2054.6,1.043]
[1772117803877,1.60203646,2055.6,2054.6,1.043]
[1772117804200,1.65103646,2055.4,2054.4,5.91036432]
[1772117805313,1.65103646,2055.4,2054.2,1.21807966]
[1772117805514,1.65103646,2055.3,2054.2,0.0011]
[1772117806221,1.65103646,2055.1,2054.2,0.0011]
[1772117806925,1.65048646,2054.9,2054.0,0.0011]
[1772117807205,1.65048646,2054.7,2054.0,0.0011]
[1772117808120,1.65048646,2054.5,2054.0,0.0011]
[1772117809088,1.65048646,2054.9,2054.0,0.0011]
[1772117809396,3.04548646,2055.3,2054.0,0.0011]
[1772117809593,1.65048646,2055.3,2054.0,0.0011]
[1772117809795,0.001,2055.6,2054.2,0.26877624]
[1772117809981,0.001,2055.6,2054.1,2.66873725]
[1772117809982,0.001,2055.6,2054.4,0.26877624]
[1772117810187,0.001,2055.6,2054.5,1.21684108]
[1772117810790,0.001,2055.6,2054.6,1.04]
[1772117811612,1.65048646,2056.1,2054.7,1.30877624]
[1772117811820,1.65048646,2056.1,2054.9,0.18685624]
[1772117812188,1.65048646,2056.1,2055.1,0.18685624]
[1772117812510,1.65148646,2056.5,2055.1,0.26877624]
[1772117813039,1.65148646,2056.5,2055.1,2.36852653]
[1772117813240,1.0265612,2057.0,2055.3,0.26877624]
[1772117813746,1.0265612,2057.6,2055.9,0.26877624]
[1772117814063,1.0265612,2057.6,2056.2,0.26877624]
[1772117814346,1.0265612,2058.0,2056.4,0.26877624]
[1772117815850,1.0265612,2058.0,2056.5,1.04]
[1772117816528,1.21483065,2057.9,2056.6,1.4024548]
[1772117816734,1.08463826,2057.8,2056.5,1.21561946]
[1772117816912,6.35128936,2058.0,2056.5,1.21561946]
[1772117816913,1.2148136,2058.0,2056.6,0.26877624]
[1772117817112,2.29945186,2058.0,2056.6,0.08192]
[1772117817311,1.08463826,2057.9,2056.6,1.04]
[1772117817571,1.08463826,2057.9,2056.5,2.25561946]
[1772117817718,1.08463826,2057.9,2056.1,2.73235955]
[1772117817719,1.08463826,2057.8,2056.1,2.73235955]
[1772117817923,1.08463826,2057.5,2055.6,1.04]
[1772117818124,1.08463826,2057.2,2055.6,1.04]
[1772117818329,1.08463826,2057.2,2055.4,0.56788712]
[1772117818628,1.08463826,2056.9,2055.5,2.25624908]
[1772117819844,1.49196675,2056.7,2055.4,1.21626471]
[1772117820082,1.08463826,2056.6,2055.2,1.041]
[1772117820587,1.21565767,2056.5,2055.3,1.21636744]
[1772117820748,1.08463826,2056.4,2055.2,2.25738098]
[1772117820949,1.08463826,2056.2,2055.1,1.21647921]
[1772117821145,1.08463826,2056.2,2054.7,2.25772263]
[1772117821388,1.08463826,2056.2,2054.4,1.21690031]
[1772117821594,1.08463826,2055.9,2054.7,1.041]
[1772117821809,1.08463826,2055.3,2054.2,0.0011]
[1772117822075,1.08463826,2055.3,2054.2,1.21810375]
[1772117822467,1.21642662,2055.2,2054.2,0.0011]
[1772117822668,1.08463826,2055.3,2054.2,0.0011]
[1772117822865,2.30100751,2055.3,2054.2,0.0011]
[1772117823082,1.08463826,2055.2,2054.2,0.0011]
[1772117823287,1.08463826,2055.2,2054.0,0.0011]
[1772117823579,1.08463826,2054.8,2054.0,0.0011]
[1772117823810,1.49196675,2055.2,2054.0,0.0011]
[1772117823811,2.30100751,2055.3,2054.0,1.21823441]
[1772117824006,1.08463826,2055.2,2054.0,1.21823441]
[1772117824210,1.08463826,2055.2,2054.0,2.25823441]
[1772117824708,1.21648581,2055.1,2054.0,2.25823441]
[1772117825018,5.95058152,2055.2,2054.0,2.25823441]
[1772117825019,2.30106632,2055.2,2054.0,2.25823441]
[1772117825200,1.21640833,2055.3,2054.0,2.25823441]
[1772117825820,1.21640833,2055.3,2054.0,0.0011]
[1772117825821,1.08463826,2055.1,2054.0,0.0011]
[1772117826384,1.08463826,2055.1,2054.0,1.21823053]
[1772117826607,1.08463826,2054.9,2054.0,0.0011]
[1772117826809,2.30095994,2055.4,2054.0,1.49306675]
[1772117827114,1.08463826,2055.4,2054.0,1.49306675]
[1772117827317,2.30095493,2055.4,2054.1,1.041]
[1772117827619,2.30095493,2055.4,2054.0,0.0011]
[1772117827620,1.08463826,2055.3,2054.0,0.0011]
[1772117827816,1.08463826,2055.3,2054.2,1.04]
[1772117828520,2.30074651,2055.8,2054.2,1.0411]
[1772117828682,1.08463826,2055.7,2054.3,2.70892629]
[1772117828877,0.001,2055.1,2054.4,1.04]
[1772117829510,1.08463826,2055.9,2054.5,0.08192]
[1772117829820,1.08463826,2055.9,2054.4,1.04]
[1772117829985,1.08463826,2055.9,2054.5,0.08192]
[1772117830585,2.30070986,2055.8,2054.6,1.21678185]
[1772117830902,2.30070986,2055.8,2054.3,4.86770275]
[1772117830903,1.08463826,2055.6,2054.3,4.86770275]
[1772117831111,1.21600277,2056.0,2054.5,1.49196675]
[1772117831284,2.30064103,2056.0,2054.6,0.18685624]
[1772117831489,2.30064103,2056.0,2054.7,0.08192]
[1772117831490,1.08463826,2056.0,2054.7,0.08192]
[1772117831794,1.08463826,2056.0,2054.8,1.039]
[1772117832329,1.08463826,2055.9,2054.6,1.039]
[1772117832822,1.08463826,2055.7,2054.7,1.21672263]
[1772117833193,1.2160716,2055.8,2054.7,1.21672263]
[1772117833520,2.30033591,2056.5,2055.0,0.26877624]
[1772117833728,1.08463826,2056.4,2055.0,0.26877624]
[1772117834024,1.08463826,2056.4,2055.1,1.038]
[1772117834709,1.2157759,2056.3,2055.2,1.21642662]
[1772117834905,1.08463826,2056.2,2055.2,1.21642662]
[1772117835619,1.08463826,2056.2,2054.9,1.21660421]
[1772117835836,1.08463826,2056.0,2054.9,2.25360421]
[1772117836927,1.21581308,2056.3,2054.9,2.25360421]
[1772117837214,2.30045134,2056.3,2054.9,2.25360421]
[1772117837420,1.08463826,2056.2,2054.9,2.25360421]
[1772117837593,5.94706009,2056.6,2055.2,0.08192]
[1772117837784,1.08463826,2056.5,2055.3,1.037]
[1772117838319,1.08463826,2056.5,2054.7,1.21669815]
[1772117838320,1.49196675,2056.0,2054.7,1.21669815]
[1772117838525,1.08463826,2055.9,2054.7,1.21669815]
[1772117838721,1.08463826,2055.9,2054.3,1.21695954]
[1772117838923,1.08463826,2055.7,2054.4,1.038]
[1772117839120,2.57660501,2055.7,2054.3,1.037]
[1772117839321,1.08463826,2055.6,2054.3,1.038]
[1772117839503,1.2160716,2055.8,2054.2,0.0011]
[1772117839504,1.08463826,2055.2,2054.2,0.0011]
[1772117840902,1.21648581,2055.1,2054.2,0.0011]
[1772117841221,1.08463826,2055.1,2054.2,0.0011]
[1772117841425,1.21647186,2055.2,2054.2,0.0011]
[1772117841720,1.08463826,2055.1,2054.2,0.0011]
[1772117842986,1.08463826,2054.9,2054.2,0.0011]
[1772117843992,4.86618004,2055.1,2054.2,0.0011]
[1772117843993,1.21652173,2055.1,2054.2,0.0011]
[1772117844302,2.30104245,2055.3,2054.3,1.035]
[1772117844497,1.08463826,2055.2,2054.3,1.035]
[1772117845023,1.08463826,2055.2,2054.4,1.21690031]
[1772117845322,1.21634354,2055.4,2054.4,1.21690031]
[1772117845513,2.3009818,2055.4,2054.4,2.24990031]
[1772117846530,1.08463826,2055.4,2054.4,2.24990031]
[1772117846895,1.21636744,2055.3,2054.2,0.0011]
[1772117847097,1.0590502,2055.2,2054.2,0.0011]
[1772117848735,1.0590502,2055.1,2054.2,0.0011]
[1772117849235,1.0590502,2054.9,2054.0,0.0011]
[1772117849532,2.5955166,2055.1,2054.0,0.0011]
[1772117849832,1.21644742,2055.2,2054.0,0.0011]
[1772117850136,1.0590502,2055.1,2054.0,1.0331]
[1772117850621,1.0590502,2054.8,2054.0,0.0011]
[1772117851005,1.0590502,2054.6,2054.0,0.0011]
[1772117853016,1.0590502,2054.5,2052.6,1.49196675]
[1772117853215,1.0590502,2054.2,2052.9,1.029]
[1772117853436,1.0590502,2053.9,2052.9,1.029]
[1772117853642,6.62196675,2054.0,2052.6,1.21790812]
[1772117853643,1.0590502,2053.6,2052.6,1.21790812]
[1772117854007,1.378,2053.8,2052.6,1.21790812]
[1772117854419,1.0590502,2054.0,2052.7,0.08192]
[1772117854616,1.0590502,2054.0,2052.8,1.03]
[1772117855141,1.21719655,2053.9,2052.9,1.03]
[1772117855711,2.27624675,2053.9,2052.9,1.03]
[1772117855912,1.0590502,2053.8,2052.8,1.21784879]
[1772117856241,1.0590502,2053.8,2052.8,2.24684879]
[1772117856421,1.0590502,2053.8,2052.2,2.50653725]
[1772117856620,1.21719655,2053.9,2052.5,1.029]
[1772117856621,1.0590502,2053.6,2052.5,1.029]
[1772117857151,1.0590502,2053.6,2052.1,0.08192]
[1772117857152,1.0590502,2053.4,2052.1,0.08192]
[1772117857317,1.0590502,2053.4,2052.2,1.029]
[1772117857517,4.86973459,2053.6,2052.2,4.30844763]
[1772117857518,1.21741544,2053.6,2052.2,4.30844763]
[1772117857738,1.21741544,2053.6,2052.3,0.66887727]
[1772117858249,1.04832076,2053.6,2052.0,5.28379023]
[1772117858434,1.04832076,2053.4,2052.1,0.41060125]
[1772117858614,1.04832076,2053.4,2052.0,4.87318898]
[1772117858949,1.04832076,2053.4,2051.8,4.87329434]
[1772117858950,1.04832076,2053.2,2051.8,1.21844234]
[1772117859251,1.04832076,2053.2,2051.8,2.24844234]
[1772117859420,1.04832076,2053.0,2051.8,2.24844234]
[1772117860210,1.04832076,2053.0,2051.8,1.21844234]
[1772117860412,1.04832076,2052.6,2051.3,1.21977992]
[1772117860616,1.04832076,2052.6,2051.4,4.87470898]
[1772117861449,1.04832076,2052.6,2051.3,2.16946548]
[1772117861649,1.21796958,2052.6,2051.4,0.18685624]
[1772117861849,1.21796958,2052.6,2051.3,0.67749873]
[1772117862026,2.26629034,2052.6,2051.3,0.67749873]
[1772117862227,1.376,2052.9,2051.3,2.16946548]
[1772117862462,1.04832076,2052.7,2051.3,0.67749873]
[1772117863585,1.21796745,2052.6,2051.4,1.21867992]
[1772117863870,2.2662512,2052.7,2051.4,1.21867992]
[1772117864358,2.59383995,2052.9,2051.5,0.18685624]
[1772117864564,1.376,2052.9,2051.6,1.71358781]
[1772117864742,1.21773237,2053.0,2051.7,0.87044405]
[1772117865259,2.58950859,2053.4,2052.0,0.68358781]
[1772117865462,2.58950859,2053.4,2052.1,1.03]
[1772117865631,1.04832076,2053.3,2052.2,1.21820485]
[1772117867336,1.04832076,2053.3,2052.3,1.029]
[1772117867942,1.21761153,2053.2,2052.3,1.029]
[1772117868135,1.21761153,2053.2,2052.4,1.21808614]
[1772117868336,2.26592097,2053.3,2052.4,1.21808614]
[1772117868543,1.21749293,2053.4,2052.4,1.21808614]
[1772117868830,2.26675473,2053.5,2052.4,1.21808614]
[1772117869167,1.04832076,2053.4,2052.4,1.21808614]
[1772117869370,2.54532626,2053.1,2052.4,2.24608614]
[1772117869567,1.04832076,2053.0,2052.4,1.028]
[1772117869981,1.04832076,2053.4,2052.4,1.028]
[1772117870264,1.04832076,2053.4,2052.5,1.21802679]
[1772117870265,2.26583731,2053.4,2052.5,1.21802679]
[1772117870433,1.04832076,2053.4,2052.5,1.21802679]
[1772117870866,0.001,2053.5,2052.5,1.21802679]
[1772117871266,1.21845056,2053.5,2052.5,1.21802679]
[1772117871466,1.21845056,2053.5,2052.6,1.027]
[1772117872765,2.26677132,2053.5,2052.4,0.08192]
[1772117872969,2.26677132,2053.5,2052.6,1.026]
[1772117873748,1.04932076,2053.5,2052.6,1.026]
[1772117874387,0.001,2053.5,2052.6,1.026]
[1772117874600,0.001,2053.5,2052.7,1.4970055]
[1772117874755,0.001,2053.5,2053.1,1.21767083]
[1772117875087,0.001,2053.5,2052.7,1.21790812]
[1772117875245,0.001,2053.5,2052.8,1.024]
[1772117875669,1.04932076,2053.5,2052.7,1.21790812]
[1772117875981,1.04932076,2053.5,2052.8,1.024]
[1772117876286,1.06243627,2053.3,2052.3,4.87256157]
[1772117876565,1.06243627,2053.3,2052.3,1.21814549]
[1772117877638,2.09488636,2052.9,2051.7,4.87400651]
[1772117877845,1.06243627,2052.8,2051.7,4.87400651]
[1772117878087,1.06243627,2052.8,2051.8,1.025]
[1772117878244,1.361,2053.0,2051.8,1.025]
[1772117878245,1.361,2053.0,2052.5,0.0011]
[1772117878682,2.42343627,2053.0,2052.3,0.0011]
[1772117878880,1.06243627,2052.9,2052.3,0.0011]
[1772117879346,2.28028256,2052.9,2052.3,0.0011]
[1772117880204,1.06243627,2052.9,2052.3,0.0011]
[1772117880416,2.27999645,2053.3,2052.3,1.0241]
[1772117880719,1.06243627,2053.2,2052.3,0.0011]
[1772117880888,1.06243627,2053.1,2052.3,0.0011]
[1772117881301,2.09488636,2053.2,2052.0,0.0011]
[1772117881302,1.06243627,2052.8,2052.0,0.0011]
[1772117881495,2.28034439,2052.7,2052.0,0.0011]
[1772117881691,1.06243627,2052.6,2052.0,0.0011]
[1772117882981,1.06243627,2052.5,2052.0,0.0011]
[1772117883388,1.21808614,2052.4,2052.0,0.0011]
[1772117883615,1.06243627,2052.3,2051.6,0.0011]
[1772117884109,1.06243627,2052.2,2051.6,0.0011]
[1772117884936,1.21808614,2052.4,2051.6,0.0011]
[1772117885099,4.87234457,2052.5,2051.6,0.0011]
[1772117885100,1.21803381,2052.5,2051.6,0.0011]
[1772117885296,2.28040749,2052.6,2051.6,0.0011]
[1772117885611,1.06243627,2052.6,2051.6,0.0011]
[1772117885817,1.06243627,2052.5,2051.6,0.0011]
[1772117886482,2.09488636,2052.3,2051.6,0.0011]
[1772117886687,1.06243627,2052.2,2051.4,0.0011]
[1772117887606,2.2804083,2052.6,2051.4,0.0011]
[1772117888211,4.37529466,2052.6,2051.5,1.022]
[1772117888543,1.06243627,2053.0,2051.6,0.18685624]
[1772117888855,1.06243627,2053.0,2051.7,2.09488636]
[1772117889144,1.06243627,2052.8,2051.5,1.022]
[1772117889308,1.06243627,2052.5,2051.5,1.022]
[1772117889515,1.06243627,2052.3,2051.6,1.21856112]
[1772117889719,1.06243627,2052.3,2051.4,0.0011]
[1772117889720,1.06243627,2052.2,2051.4,0.0011]
[1772117890021,1.06243627,2052.5,2051.4,1.21975806]
[1772117890627,1.21796745,2052.6,2051.4,1.21975806]
[1772117890628,1.06243627,2052.1,2051.4,1.21977501]
[1772117891242,1.06243627,2052.1,2051.6,0.0011]
[1772117892141,2.28072406,2052.1,2051.6,0.0011]
[1772117892328,2.28072406,2052.1,2051.2,1.21879875]
[1772117892329,1.06243627,2051.9,2051.2,1.21879875]
[1772117892529,1.06243627,2051.6,2051.0,1.22001053]
[1772117892828,3.15732263,2051.2,2050.8,0.0011]
[1772117893043,1.06243627,2051.1,2050.3,5.89920187]
[1772117893247,1.06243627,2051.1,2050.3,2.24128805]
[1772117893546,1.06243627,2051.1,2050.0,1.21951219]
[1772117893842,2.42543627,2051.4,2050.1,2.09488636]
[1772117894023,2.42543627,2051.4,2050.2,1.023]
[1772117894427,2.2811756,2051.3,2050.3,1.21933375]
[1772117895328,1.06243627,2051.3,2050.3,1.21933375]
[1772117895528,2.58172642,2051.4,2049.9,1.22064541]
[1772117895529,1.06243627,2050.4,2049.9,1.22064541]
[1772117895836,1.06243627,2050.4,2050.0,4.70795461]
[1772117896147,1.06243627,2050.8,2050.0,4.70795461]
[1772117896561,1.21909591,2050.7,2050.0,4.70795461]
[1772117896742,1.06243627,2050.8,2050.0,5.92745142]
[1772117896925,2.58001404,2050.9,2050.0,5.92745142]
[1772117897265,1.06243627,2050.8,2050.0,5.92746334]
[1772117897637,1.06243627,2050.8,2050.0,4.70795461]
[1772117897959,1.06243627,2050.8,2050.0,5.92746303]
[1772117898124,1.06243627,2050.8,2050.0,5.92746381]
[1772117898527,2.28153218,2050.7,2050.0,5.92746381]
[1772117898873,2.28129635,2051.1,2050.0,6.95046381]
[1772117899453,1.21886008,2051.1,2050.0,6.95046381]
[1772117899778,1.06243627,2051.0,2050.0,6.95046381]
[1772117900655,1.21897703,2050.9,2050.0,6.95046381]
[1772117900987,1.21897703,2050.9,2050.0,5.92743743]
[1772117901160,2.2814133,2050.9,2050.0,5.92743743]
[1772117901565,1.06243627,2050.7,2050.0,5.9274632]
[1772117902062,2.28139401,2051.0,2050.0,5.9274632]
[1772117902668,2.28139401,2051.0,2050.2,0.0011]
[1772117902857,2.09488636,2051.4,2050.2,0.0011]
[1772117902858,2.28112564,2051.4,2050.2,0.0011]
[1772117903075,0.001,2050.9,2050.3,4.70795461]
[1772117903581,2.28090453,2051.8,2050.4,2.73326201]
[1772117903759,2.28088175,2051.8,2050.6,2.09488636]
[1772117903958,1.06243627,2051.8,2050.6,2.09488636]
[1772117904158,2.28087952,2051.8,2050.6,2.09488636]
[1772117904388,2.28087952,2051.8,2050.5,5.73395461]
[1772117904583,2.28087952,2051.8,2050.6,4.70795461]
[1772117904788,2.42143627,2052.2,2050.9,2.09488636]
[1772117905061,1.06243627,2052.0,2051.0,1.026]
[1772117905589,2.28064213,2052.2,2051.0,1.026]
[1772117905789,1.06243627,2052.1,2051.1,4.70795461]
[1772117905992,1.06243627,2052.0,2051.1,4.70795461]
[1772117906196,1.06243627,2052.0,2051.2,4.70795461]
[1772117906393,1.1365327,2051.7,2050.8,1.026]
[1772117906698,1.1365327,2051.7,2050.8,5.73395461]
[1772117906892,1.1365327,2051.3,2050.4,1.026]
[1772117907083,1.1365327,2051.2,2050.4,1.026]
[1772117907279,2.09488636,2051.1,2050.5,4.70795461]
[1772117907497,1.1365327,2051.0,2050.3,4.70795461]
[1772117908386,1.358,2051.3,2050.3,4.70795461]
[1772117908693,1.1365327,2051.2,2050.3,5.73395461]
[1772117909010,1.358,2051.3,2050.4,5.92722889]
[1772117909174,2.35525253,2051.4,2050.4,5.92722889]
[1772117910058,2.35525253,2051.4,2050.4,1.21927428]
[1772117910660,1.1365327,2051.4,2050.4,1.21927428]
[1772117910971,1.1365327,2051.4,2050.6,1.21915536]
[1772117910972,2.35522408,2051.4,2050.6,1.21915536]
[1772117911302,2.35521324,2051.4,2050.6,1.21915536]
[1772117912998,3.71191912,2051.9,2050.8,1.21903647]
[1772117913288,3.71192178,2051.9,2050.9,1.027]
[1772117913490,2.4935327,2051.9,2050.9,1.027]
[1772117913688,1.21820485,2052.2,2051.0,4.70795461]
[1772117914009,2.354719,2052.3,2051.0,4.70795461]
[1772117914183,6.22945516,2052.4,2051.1,2.7113485]
[1772117914184,0.001,2052.4,2051.1,2.7113485]
[1772117914387,1.2190905,2052.4,2051.2,4.70795461]
[1772117914587,0.001,2052.4,2051.4,2.09488636]
[1772117915102,0.001,2052.4,2051.5,5.92657513]
[1772117915304,0.001,2052.4,2051.7,2.09488636]
[1772117915488,6.00731328,2053.1,2052.0,2.09488636]
[1772117915489,2.35420927,2053.1,2052.0,2.09488636]
[1772117915796,0.001,2052.1,2051.8,1.027]
[1772117916000,2.35420927,2053.1,2051.9,4.70795461]
[1772117916209,2.35420927,2053.1,2051.8,1.027]
[1772117916382,2.35420972,2053.1,2052.0,2.09488636]
[1772117916593,1.21759109,2053.3,2052.0,2.09488636]
[1772117916790,1.21751827,2053.4,2052.1,4.70795461]
[1772117916994,2.35500606,2053.5,2052.4,1.21808614]
[1772117918000,1.04021608,2053.2,2052.5,4.70795461]
[1772117918411,0.001,2053.5,2052.6,3.12388636]
[1772117918705,0.001,2053.5,2052.6,1.029]
[1772117918997,0.001,2053.5,2052.7,1.21790812]
[1772117920079,1.04121608,2053.5,2052.8,4.70795461]
[1772117920278,1.04121608,2053.5,2052.7,4.70795461]
[1772117920681,1.04121608,2053.5,2052.6,2.24695486]
[1772117920881,1.04121608,2053.5,2052.7,4.70795461]
[1772117921094,0.001,2053.5,2052.8,1.21784879]
[1772117921278,1.04021608,2053.9,2052.9,2.09488636]
[1772117921279,2.25741582,2053.9,2052.9,2.09488636]
[1772117921485,2.25741582,2053.9,2053.0,1.029]
[1772117921980,1.04021608,2053.8,2053.1,4.70795461]
[1772117922191,1.04021608,2053.7,2053.1,4.70795461]
[1772117924110,1.21737436,2053.6,2053.1,4.70795461]
[1772117924311,2.25759044,2053.6,2053.1,4.70795461]
[1772117924606,1.21723768,2053.9,2053.1,5.9256204]
[1772117924907,3.61139403,2054.0,2053.2,1.03]
[1772117925409,1.04021608,2053.9,2053.3,4.70795461]
[1772117925607,1.04021608,2053.9,2053.2,3.58428581]
[1772117926190,2.09488636,2053.8,2053.2,3.58428581]
[1772117926710,2.25753116,2053.7,2052.7,1.03]
[1772117926891,2.25753116,2053.7,2052.8,3.58428581]
[1772117926892,3.13510244,2053.5,2052.8,3.58428581]
[1772117927077,4.48910244,2053.5,2052.5,1.21799074]
[1772117927282,2.39421608,2053.5,2052.5,1.21799074]
[1772117927980,2.39421608,2053.5,2052.4,2.24805264]
[1772117928183,2.39421608,2053.5,2052.5,3.58428581]
[1772117928622,1.354,2053.5,2052.5,3.58428581]
[1772117928980,1.21741965,2053.6,2052.6,1.21796745]
[1772117929182,1.21835103,2053.7,2052.6,2.27696159]
[1772117929381,1.21835103,2053.7,2052.7,3.58428581]
[1772117929613,1.21835103,2053.7,2052.8,1.03]
[1772117931119,0.001,2053.7,2052.9,1.21778946]
[1772117931285,0.001,2053.7,2052.9,4.80207527]
[1772117933015,1.21737436,2053.6,2052.9,3.58428581]
[1772117933297,4.3524768,2053.6,2052.9,3.58428581]
[1772117933779,1.04021608,2053.5,2052.9,3.58428581]
[1772117934006,1.04021608,2053.5,2052.9,2.46466932]
[1772117934201,1.04021608,2053.5,2052.5,1.031]
[1772117934388,2.09488636,2053.4,2052.6,2.46466932]
[1772117934580,3.44788636,2053.4,2052.6,2.46466932]
[1772117934798,1.353,2053.4,2052.6,2.46466932]
[1772117935110,1.21767083,2053.1,2052.6,2.46466932]
[1772117935428,1.49744605,2052.9,2052.0,4.87313296]
[1772117935585,1.21767083,2053.1,2052.1,2.249242]
[1772117935920,1.21764936,2053.2,2052.2,1.05899414]
[1772117936087,1.21759582,2053.3,2052.2,1.05899414]
[1772117936278,1.21759582,2053.3,2052.3,1.08030389]
[1772117936682,1.353,2053.4,2052.3,1.08030389]
[1772117936882,1.21740027,2053.6,2052.6,1.08030389]
[1772117937186,1.21831508,2053.7,2052.8,2.29815268]
[1772117937717,0.001,2053.7,2052.8,2.29815268]
[1772117938102,0.001,2053.7,2052.9,1.08030389]
[1772117938780,0.001,2053.7,2052.8,1.21784879]
[1772117940117,0.001,2053.7,2053.0,1.08030389]
[1772117940418,0.001,2053.7,2053.0,1.031]
[1772117940814,1.49744605,2053.5,2052.6,2.29822599]
[1772117941017,0.001,2053.7,2052.6,3.32922599]
[1772117941191,1.21831508,2053.7,2052.6,3.32922599]
[1772117941710,1.49744605,2053.1,2052.5,0.0011]
[1772117941911,1.49744605,2053.1,2052.5,1.21911812]
[1772117942120,1.21831508,2053.7,2052.6,1.08030389]
[1772117942486,1.49744605,2053.6,2052.6,1.08030389]
[1772117942709,1.49744605,2053.6,2052.5,2.25111812]
[1772117942882,2.57064034,2053.6,2052.5,2.25111812]
[1772117943998,1.21743364,2053.5,2052.5,2.25111812]
[1772117944802,1.49744605,2053.3,2052.5,0.0011]
[1772117945001,2.84944605,2053.3,2052.5,0.0011]
[1772117945198,1.21743364,2053.5,2052.5,2.29943007]
[1772117945401,2.56943364,2053.5,2052.6,1.08030389]
[1772117945923,2.56943364,2053.5,2052.7,1.21790812]
[1772117946737,2.56943364,2053.5,2052.6,1.08030389]
[1772117946918,1.07319429,2053.4,2052.5,0.0011]
[1772117947091,1.49744605,2053.2,2052.5,0.0011]
[1772117947291,1.49744605,2052.9,2052.5,0.0011]
[1772117947610,1.352,2053.0,2052.3,0.0011]
[1772117947794,1.21778946,2052.9,2052.3,0.0011]
[1772117948123,10.00114936,2053.1,2052.3,0.0011]
[1772117948124,4.87078256,2053.1,2052.3,0.0011]
[1772117948435,1.21737436,2053.6,2052.3,1.08140389]
[1772117949140,1.21737436,2053.6,2052.6,1.08030389]
[1772117949342,1.21737436,2053.6,2052.7,2.11130389]
[1772117949495,1.21737436,2053.6,2052.7,1.031]
[1772117949696,1.21833616,2053.7,2052.8,1.08030389]
[1772117949894,0.001,2053.7,2052.9,2.29809335]
[1772117951631,0.001,2053.7,2053.2,1.08030389]
[1772117951927,0.001,2053.7,2053.2,2.29790107]
[1772117952233,0.001,2053.7,2053.2,1.21759718]
[1772117952616,1.21701879,2054.2,2053.3,1.08030389]
[1772117952819,0.001,2053.5,2053.3,1.08030389]
[1772117953024,1.21701879,2054.2,2053.2,2.24859718]
[1772117953633,1.21666342,2054.8,2053.6,2.57774994]
[1772117953833,1.21666342,2054.8,2053.7,2.11230389]
[1772117954129,1.21648581,2055.1,2053.9,1.08030389]
[1772117955270,1.21648581,2055.1,2054.2,1.08030389]
[1772117955405,2.56645788,2055.2,2054.3,1.08030389]
[1772117955603,2.54079345,2055.2,2054.3,1.08030389]
[1772117955805,2.54079345,2055.2,2054.2,1.032]
[1772117956004,2.54079345,2055.2,2054.3,1.21695954]